{"text_format":"3","workbook":"xlsx","n_sheets":2,"sheets":["Töövahendite inventar","Sätted"],"not_rendered":{"defined_names":4},"read":"whole","date_system":"1900"}

{"sheet":"Töövahendite inventar","index":0,"n_rows":35,"n_cols":6,"rows_kept":35,"merged":[[0,1,2,2],[0,4,0,5]]}
[]
[{"$nulls":4},"Tõsta esile artiklid, mis on vanemad kui:"]
[{"$nulls":4},4]
[]
[null,"SEADME ID","ARTIKLI NIMETUS","MÄÄRATUD KASUTAJALE","VÄLJAANDMISKUUPÄEV","ARTIKLI VANUS"]
[null,"ART0001","tool","Töötaja 1",{"$f":"TODAY()-25","v":"2012-12-03"},{"$f":"IF(tblTöövahendidInventar[[#This Row],[VÄLJAANDMISKUUPÄEV]]<>\"\",TODAY()-tblTöövahendidInventar[[#This Row],[VÄLJAANDMISKUUPÄEV]],\"\")","v":{"v":25,"d":"25 Päevad"}}]
[null,"ART0002","laserprinter","Töötaja 2",{"$f":"TODAY()-479","v":"2011-09-06"},{"$f":"IF(tblTöövahendidInventar[[#This Row],[VÄLJAANDMISKUUPÄEV]]<>\"\",TODAY()-tblTöövahendidInventar[[#This Row],[VÄLJAANDMISKUUPÄEV]],\"\")","v":{"v":479,"d":"479 Päevad"}}]
[null,"ART0003","skanner","Töötaja 3",{"$f":"TODAY()-177","v":"2012-07-04"},{"$f":"IF(tblTöövahendidInventar[[#This Row],[VÄLJAANDMISKUUPÄEV]]<>\"\",TODAY()-tblTöövahendidInventar[[#This Row],[VÄLJAANDMISKUUPÄEV]],\"\")","v":{"v":177,"d":"177 Päevad"}}]
[null,"ART0004","laserprinter","Töötaja 7",{"$f":"TODAY()-18","v":"2012-12-10"},{"$f":"IF(tblTöövahendidInventar[[#This Row],[VÄLJAANDMISKUUPÄEV]]<>\"\",TODAY()-tblTöövahendidInventar[[#This Row],[VÄLJAANDMISKUUPÄEV]],\"\")","v":{"v":18,"d":"18 Päevad"}}]
[null,"ART0005","kohvimasin","Töötaja 20",{"$f":"TODAY()-227","v":"2012-05-15"},{"$f":"IF(tblTöövahendidInventar[[#This Row],[VÄLJAANDMISKUUPÄEV]]<>\"\",TODAY()-tblTöövahendidInventar[[#This Row],[VÄLJAANDMISKUUPÄEV]],\"\")","v":{"v":227,"d":"227 Päevad"}}]
[null,"ART0006","skanner","Töötaja 14",{"$f":"TODAY()-50","v":"2012-11-08"},{"$f":"IF(tblTöövahendidInventar[[#This Row],[VÄLJAANDMISKUUPÄEV]]<>\"\",TODAY()-tblTöövahendidInventar[[#This Row],[VÄLJAANDMISKUUPÄEV]],\"\")","v":{"v":50,"d":"50 Päevad"}}]
[null,"ART0007","laud","Töötaja 4",{"$f":"TODAY()-120","v":"2012-08-30"},{"$f":"IF(tblTöövahendidInventar[[#This Row],[VÄLJAANDMISKUUPÄEV]]<>\"\",TODAY()-tblTöövahendidInventar[[#This Row],[VÄLJAANDMISKUUPÄEV]],\"\")","v":{"v":120,"d":"120 Päevad"}}]
[null,"ART0008","paljundusmasin","Töötaja 12",{"$f":"TODAY()-499","v":"2011-08-17"},{"$f":"IF(tblTöövahendidInventar[[#This Row],[VÄLJAANDMISKUUPÄEV]]<>\"\",TODAY()-tblTöövahendidInventar[[#This Row],[VÄLJAANDMISKUUPÄEV]],\"\")","v":{"v":499,"d":"499 Päevad"}}]
[null,"ART0009","lisakuvar","Töötaja 8",{"$f":"TODAY()-30","v":"2012-11-28"},{"$f":"IF(tblTöövahendidInventar[[#This Row],[VÄLJAANDMISKUUPÄEV]]<>\"\",TODAY()-tblTöövahendidInventar[[#This Row],[VÄLJAANDMISKUUPÄEV]],\"\")","v":{"v":30,"d":"30 Päevad"}}]
[null,"ART0010","tahvel","Töötaja 19",{"$f":"TODAY()-50","v":"2012-11-08"},{"$f":"IF(tblTöövahendidInventar[[#This Row],[VÄLJAANDMISKUUPÄEV]]<>\"\",TODAY()-tblTöövahendidInventar[[#This Row],[VÄLJAANDMISKUUPÄEV]],\"\")","v":{"v":50,"d":"50 Päevad"}}]
[null,"ART0011","paljundusmasin","Töötaja 12",{"$f":"TODAY()-450","v":"2011-10-05"},{"$f":"IF(tblTöövahendidInventar[[#This Row],[VÄLJAANDMISKUUPÄEV]]<>\"\",TODAY()-tblTöövahendidInventar[[#This Row],[VÄLJAANDMISKUUPÄEV]],\"\")","v":{"v":450,"d":"450 Päevad"}}]
[null,"ART0012","kirjaplangid","Töötaja 18",{"$f":"TODAY()-420","v":"2011-11-04"},{"$f":"IF(tblTöövahendidInventar[[#This Row],[VÄLJAANDMISKUUPÄEV]]<>\"\",TODAY()-tblTöövahendidInventar[[#This Row],[VÄLJAANDMISKUUPÄEV]],\"\")","v":{"v":420,"d":"420 Päevad"}}]
[null,"ART0013","lisakuvar","Töötaja 8",{"$f":"TODAY()-250","v":"2012-04-22"},{"$f":"IF(tblTöövahendidInventar[[#This Row],[VÄLJAANDMISKUUPÄEV]]<>\"\",TODAY()-tblTöövahendidInventar[[#This Row],[VÄLJAANDMISKUUPÄEV]],\"\")","v":{"v":250,"d":"250 Päevad"}}]
[null,"ART0014","kohvimasin","Töötaja 9",{"$f":"TODAY()-45","v":"2012-11-13"},{"$f":"IF(tblTöövahendidInventar[[#This Row],[VÄLJAANDMISKUUPÄEV]]<>\"\",TODAY()-tblTöövahendidInventar[[#This Row],[VÄLJAANDMISKUUPÄEV]],\"\")","v":{"v":45,"d":"45 Päevad"}}]
[null,"ART0015","kirjaplangid","Töötaja 13",{"$f":"TODAY()-502","v":"2011-08-14"},{"$f":"IF(tblTöövahendidInventar[[#This Row],[VÄLJAANDMISKUUPÄEV]]<>\"\",TODAY()-tblTöövahendidInventar[[#This Row],[VÄLJAANDMISKUUPÄEV]],\"\")","v":{"v":502,"d":"502 Päevad"}}]
[null,"ART0016","skanner","Töötaja 1",{"$f":"TODAY()-350","v":"2012-01-13"},{"$f":"IF(tblTöövahendidInventar[[#This Row],[VÄLJAANDMISKUUPÄEV]]<>\"\",TODAY()-tblTöövahendidInventar[[#This Row],[VÄLJAANDMISKUUPÄEV]],\"\")","v":{"v":350,"d":"350 Päevad"}}]
[null,"ART0017","paljundusmasin","Töötaja 19",{"$f":"TODAY()-125","v":"2012-08-25"},{"$f":"IF(tblTöövahendidInventar[[#This Row],[VÄLJAANDMISKUUPÄEV]]<>\"\",TODAY()-tblTöövahendidInventar[[#This Row],[VÄLJAANDMISKUUPÄEV]],\"\")","v":{"v":125,"d":"125 Päevad"}}]
[null,"ART0018","tahvel","Töötaja 15",{"$f":"TODAY()-90","v":"2012-09-29"},{"$f":"IF(tblTöövahendidInventar[[#This Row],[VÄLJAANDMISKUUPÄEV]]<>\"\",TODAY()-tblTöövahendidInventar[[#This Row],[VÄLJAANDMISKUUPÄEV]],\"\")","v":{"v":90,"d":"90 Päevad"}}]
[null,"ART0019","tool","Töötaja 16",{"$f":"TODAY()-730","v":"2010-12-29"},{"$f":"IF(tblTöövahendidInventar[[#This Row],[VÄLJAANDMISKUUPÄEV]]<>\"\",TODAY()-tblTöövahendidInventar[[#This Row],[VÄLJAANDMISKUUPÄEV]],\"\")","v":{"v":730,"d":"730 Päevad"}}]
[null,"ART0020","tolmulapid (1 komplekt)","Töötaja 3",{"$f":"TODAY()-540","v":"2011-07-07"},{"$f":"IF(tblTöövahendidInventar[[#This Row],[VÄLJAANDMISKUUPÄEV]]<>\"\",TODAY()-tblTöövahendidInventar[[#This Row],[VÄLJAANDMISKUUPÄEV]],\"\")","v":{"v":540,"d":"540 Päevad"}}]
[null,"ART0021","laserprinter","Töötaja 7",{"$f":"TODAY()-18","v":"2012-12-10"},{"$f":"IF(tblTöövahendidInventar[[#This Row],[VÄLJAANDMISKUUPÄEV]]<>\"\",TODAY()-tblTöövahendidInventar[[#This Row],[VÄLJAANDMISKUUPÄEV]],\"\")","v":{"v":18,"d":"18 Päevad"}}]
[null,"ART0022","sülearvuti","Töötaja 8",{"$f":"TODAY()-283","v":"2012-03-20"},{"$f":"IF(tblTöövahendidInventar[[#This Row],[VÄLJAANDMISKUUPÄEV]]<>\"\",TODAY()-tblTöövahendidInventar[[#This Row],[VÄLJAANDMISKUUPÄEV]],\"\")","v":{"v":283,"d":"283 Päevad"}}]
[null,"ART0023","kirjaplangid","Töötaja 9",{"$f":"TODAY()-479","v":"2011-09-06"},{"$f":"IF(tblTöövahendidInventar[[#This Row],[VÄLJAANDMISKUUPÄEV]]<>\"\",TODAY()-tblTöövahendidInventar[[#This Row],[VÄLJAANDMISKUUPÄEV]],\"\")","v":{"v":479,"d":"479 Päevad"}}]
[null,"ART0024","laserprinter","Töötaja 19",{"$f":"TODAY()-355","v":"2012-01-08"},{"$f":"IF(tblTöövahendidInventar[[#This Row],[VÄLJAANDMISKUUPÄEV]]<>\"\",TODAY()-tblTöövahendidInventar[[#This Row],[VÄLJAANDMISKUUPÄEV]],\"\")","v":{"v":355,"d":"355 Päevad"}}]
[null,"ART0025","laud","Töötaja 7",{"$f":"TODAY()-28","v":"2012-11-30"},{"$f":"IF(tblTöövahendidInventar[[#This Row],[VÄLJAANDMISKUUPÄEV]]<>\"\",TODAY()-tblTöövahendidInventar[[#This Row],[VÄLJAANDMISKUUPÄEV]],\"\")","v":{"v":28,"d":"28 Päevad"}}]
[null,"ART0026","tahvel","Töötaja 8",{"$f":"TODAY()-28","v":"2012-11-30"},{"$f":"IF(tblTöövahendidInventar[[#This Row],[VÄLJAANDMISKUUPÄEV]]<>\"\",TODAY()-tblTöövahendidInventar[[#This Row],[VÄLJAANDMISKUUPÄEV]],\"\")","v":{"v":28,"d":"28 Päevad"}}]
[null,"ART0027","sülearvuti","Töötaja 19",{"$f":"TODAY()-736","v":"2010-12-23"},{"$f":"IF(tblTöövahendidInventar[[#This Row],[VÄLJAANDMISKUUPÄEV]]<>\"\",TODAY()-tblTöövahendidInventar[[#This Row],[VÄLJAANDMISKUUPÄEV]],\"\")","v":{"v":736,"d":"736 Päevad"}}]
[null,"ART0028","laud","Töötaja 12",{"$f":"TODAY()-68","v":"2012-10-21"},{"$f":"IF(tblTöövahendidInventar[[#This Row],[VÄLJAANDMISKUUPÄEV]]<>\"\",TODAY()-tblTöövahendidInventar[[#This Row],[VÄLJAANDMISKUUPÄEV]],\"\")","v":{"v":68,"d":"68 Päevad"}}]
[null,"ART0029","skanner","Töötaja 14",{"$f":"TODAY()-67","v":"2012-10-22"},{"$f":"IF(tblTöövahendidInventar[[#This Row],[VÄLJAANDMISKUUPÄEV]]<>\"\",TODAY()-tblTöövahendidInventar[[#This Row],[VÄLJAANDMISKUUPÄEV]],\"\")","v":{"v":67,"d":"67 Päevad"}}]
[null,"ART0030","kohvimasin","Töötaja 3",{"$f":"TODAY()-149","v":"2012-08-01"},{"$f":"IF(tblTöövahendidInventar[[#This Row],[VÄLJAANDMISKUUPÄEV]]<>\"\",TODAY()-tblTöövahendidInventar[[#This Row],[VÄLJAANDMISKUUPÄEV]],\"\")","v":{"v":149,"d":"149 Päevad"}}]

{"sheet":"Sätted","index":1,"n_rows":23,"n_cols":4,"rows_kept":23}
[]
[]
[null,"TÖÖTAJAD",null,"ARTIKLID"]
[null,"Töötaja 1",null,"tool"]
[null,"Töötaja 2",null,"kohvimasin"]
[null,"Töötaja 3",null,"paljundusmasin"]
[null,"Töötaja 4",null,"lauaarvuti"]
[null,"Töötaja 5",null,"tolmulapid (1 komplekt)"]
[null,"Töötaja 6",null,"lisakuvar"]
[null,"Töötaja 7",null,"tindiprinter"]
[null,"Töötaja 8",null,"sülearvuti"]
[null,"Töötaja 9",null,"laserprinter"]
[null,"Töötaja 10",null,"markerid (3 tk komplektis)"]
[null,"Töötaja 11",null,"skanner"]
[null,"Töötaja 12",null,"kirjaplangid"]
[null,"Töötaja 13",null,"laud"]
[null,"Töötaja 14",null,"USB-mälupulk"]
[null,"Töötaja 15",null,"tahvel"]
[null,"Töötaja 16"]
[null,"Töötaja 17"]
[null,"Töötaja 18"]
[null,"Töötaja 19"]
[null,"Töötaja 20"]